[Event "Dutch Open 2022"]
[Site "Dieren"]
[Date "2022.08.01"]
[Round "6.6"]
[White "Mollema, Thomas"]
[Black "Elgersma, Onno"]
[Result "1/2-1/2"]
[ECO "E04"]
[WhiteElo "2235"]
[BlackElo "2316"]
[Annotator "TA"]
[PlyCount "92"]
[EventDate "2022.07.14"]
[EventType "swiss"]
[EventCountry "NED"]
[SourceTitle "playchess.com"]
[Source "ChessBase"]
[SourceQuality "1"]
[TimeControl "40/5400+30:1800+30"]

{[%evp 16,92,-34,-17,-14,-23,-12,-32,9,0,0,0,0,0,0,0,0,-13,14,21,39,0,47,-12,0,0,17,2,4,0,49,9,24,22,19,21,22,0,0,0,0,0,36,18,25,0,2,0,15,25,20,3,24,32,24,27,27,6,6,6,6,4,24,20,20,11,14,10,21,10,11,12,13,0,12,0,18,0,24]} 1. d4 {[%emt 0:00:03]} Nf6 {[%emt 0:00:35]} 2. c4 {[%emt 0:00:39]} e6 {[%emt 0:00:05]} 3. Nf3 {[%emt 0:00:49]} Bb4+ {[%emt 0:00:32]} 4. Bd2 {[%emt 0:02:12]} a5 {[%emt 0:02:08]} 5. g3 {[%emt 0:03:20]} d5 {[%emt 0:03:46]} 6. Bg2 {[%emt 0:07:31]} O-O {[%emt 0:00:55]} 7. O-O {[%emt 0:01:10]} dxc4 {[%emt 0:00:40]} 8. Bxb4 {[%emt 0:02:06]} axb4 {[%emt 0:00:05]} 9. Ne5 $1 {[%emt 0:00:16]} Nc6 {[%emt 0:04:27] E04: Open Catalan: 5 Nf3.} 10. Nxc6 {[%emt 0:10:11]} (10. Nd2 {keeps more tension.} Nxe5 11. dxe5 c3 12. bxc3 bxc3 13. exf6 cxd2 14. fxg7 Kxg7 15. Qc2) 10... bxc6 {[%emt 0:00:18]} 11. e3 {[%emt 0:01:44]} Qd6 {[%emt 0:03:14] [#] Black is slightly better.} 12. Qc1 $146 {[%emt 0:06:16]} ({Predecessor:} 12. Nd2 Ba6 13. Re1 e5 14. Nf3 e4 15. Nd2 Rfe8 16. Qc2 Qe6 17. Rec1 c3 18. bxc3 {½-½ (58) Solomon,K (2375)-Amdouni,Z (2248) Hammamet 2019}) 12... Ba6 {[%emt 0:02:55]} 13. Rd1 {[%emt 0:00:14]} Nd5 {[%emt 0:18:30]} 14. Nd2 $1 {[%emt 0:04:07][%cal Bb1d2,Bd2e4,Be4c5][%mdl 32]} c3 {[%emt 0:04:13]} 15. Ne4 {[%emt 0:00:29][%csl LRc3,LRd6]} Qe7 {[%emt 0:04:07]} 16. Nc5 {[%emt 0:04:47]} cxb2 {[%emt 0:30:38]} 17. Qxb2 {[%emt 0:00:21]} Rfb8 {[%emt 0:00:47][%cal Oe6e5]} 18. Rdc1 {[%emt 0:02:47][%mdl 1024] White has compensation.} h6 {[%emt 0:09:18]} (18... Qd8 $11) 19. h3 {[%emt 0:14:31]} ({Better is} 19. a4 $14) 19... Bc8 {[%emt 0:04:15][%cal Oe6e5]} (19... Bb5 {with more complications.} 20. a3 bxa3 21. Rxa3 Qe8) 20. Nd3 {[%emt 0:01:42]} Bd7 {[%emt 0:01:23]} 21. Rc4 {[%emt 0:02:46]} Rb6 {[%emt 0:04:15]} 22. Kh2 {[%emt 0:01:49]} Rab8 {[%emt 0:01:08]} (22... Bc8 $11 {was preferrable.} 23. Bxd5 exd5 24. Rxb4 Rab8 25. Rxb6 Rxb6) 23. Qd2 {[%emt 0:03:26]} b3 {[%emt 0:00:45]} 24. axb3 {[%emt 0:00:19]} Rxb3 {[%emt 0:00:14]} 25. Ra7 {[%emt 0:00:34]} Be8 {[%emt 0:00:21]} 26. Nc5 {[%emt 0:05:22]} Rb2 {[%emt 0:00:09]} 27. Rc2 {[%emt 0:00:03]} Rxc2 {[%emt 0:00:26]} 28. Qxc2 {[%emt 0:00:03]} Nb4 {[%emt 0:01:51]} 29. Qe4 {[%emt 0:02:06]} Qd6 {[%emt 0:00:38]} 30. Ra5 {[%emt 0:15:35]} Nd5 {[%emt 0:00:31]} 31. Ra7 {[%emt 0:01:52]} Nc3 {[%emt 0:00:16]} 32. Qc2 {[%emt 0:00:52]} Nb5 {[%emt 0:00:09]} 33. Ra4 {[%emt 0:01:32]} Qd8 {[%emt 0:01:26]} 34. Nd3 {[%emt 0:00:31]} Ra8 {[%emt 0:00:29]} 35. Rb4 {[%emt 0:00:31]} Ra6 {[%emt 0:00:57]} 36. Ne5 {[%emt 0:02:11][%cal Re5c6]} Qd6 {[%emt 0:00:22]} 37. Ra4 {[%emt 0:01:07]} Rxa4 {[%emt 0:00:43]} 38. Qxa4 {[%emt 0:00:02]} Qd8 {[%emt 0:01:25] Inhibits Qa8.} 39. Bxc6 {[%emt 0:00:42]} Nd6 {[%emt 0:00:11] The position is equal.} 40. Bxe8 {[%emt 0:00:49]} (40. h4 {is more complex.} Qb8 41. Bxe8 Nxe8 42. Qd7) 40... Qxe8 $11 {[%emt 0:00:44][%mdl 4096] Endgame KQN-KQN} 41. Qa7 {[%emt 0:32:59]} Qd8 {[%emt 0:03:20]} 42. Kg1 {[%emt 0:00:00]} Ne4 {[%emt 0:03:02]} 43. Qb7 {[%emt 0:00:00]} Nd6 {[%emt 0:00:33]} 44. Qa7 {[%emt 0:00:00]} Ne4 {[%emt 0:00:11]} 45. Qb7 {[%emt 0:00:00]} Nd6 {[%emt 0:00:09]} 46. Qa7 {[%emt 0:00:00]} Ne4 {[%emt 0:00:09] An interesting draw.  Weighted Error Value: White=0.11 (very precise) /Black=0.10 (very precise)} 1/2-1/2

[Event "Dutch Open 2022"]
[Site "Dieren"]
[Date "2022.08.01"]
[Round "6.7"]
[White "Van Baar, Esper"]
[Black "Bus, Tom"]
[Result "0-1"]
[ECO "B51"]
[WhiteElo "2281"]
[BlackElo "2102"]
[Annotator "TA"]
[PlyCount "74"]
[EventDate "2022.07.14"]
[EventType "swiss"]
[EventCountry "NED"]
[SourceTitle "playchess.com"]
[Source "ChessBase"]
[SourceQuality "1"]
[TimeControl "40/5400+30:1800+30"]

{[%evp 9,74,11,9,12,7,7,14,15,25,35,19,21,33,29,25,19,15,9,60,0,93,75,91,54,52,62,62,58,187,58,62,50,75,63,84,-125,-127,-138,-120,-115,-24,-218,-230,-295,-283,-718,-650,-662,-545,-535,-545,-533,-526,-697,-682,-732,-706,-711,-695,-728,-709,-698,-650,-1728,-905,-29978,-5285]} 1. e4 {[%emt 0:00:05]} c5 {[%emt 0:00:19]} 2. Nf3 {[%emt 0:00:13]} d6 {[%emt 0:00:20]} 3. Bb5+ {[%emt 0:00:10]} Nd7 {[%emt 0:00:57]} 4. a4 {[%emt 0:00:10]} Ngf6 {[%emt 0:00:43]} 5. Nc3 {[%emt 0:00:31]} a6 {[%emt 0:00:53]} 6. Be2 {[%emt 0:00:12] B51: Sicilian: Moscow Variation (3 Bb5+) without 3...Bd7.} b6 {[%emt 0:01:02]} 7. d4 {[%emt 0:01:18]} cxd4 {[%emt 0:01:10]} 8. Qxd4 {[%emt 0:00:14] The position is equal.} e5 {[%emt 0:02:09]} 9. Qe3 {[%emt 0:00:36]} Be7 {[%emt 0:00:26]} 10. O-O {[%emt 0:02:06]} O-O {[%emt 0:02:02]} 11. Nd2 {[%emt 0:05:45]} Bb7 {[%emt 0:01:31]} 12. Rd1 {[%emt 0:02:53]} Qc7 {[%emt 0:01:56]} 13. Nc4 {[%emt 0:12:06]} Rad8 {[%emt 0:09:50]} 14. b3 {[%emt 0:06:35]} (14. b4 $14) 14... Nxe4 {[%emt 0:08:40]} 15. Nxe4 $16 {[%emt 0:05:08]} d5 {[%emt 0:01:06] [#]} 16. Ng3 $146 {[%emt 0:13:33]} ({Predecessor:} 16. Qg3 Kh8 17. Ng5 dxc4 18. Bxc4 Bxg5 19. Qxg5 Nc5 20. Ba3 f6 21. Qe3 a5 22. Be2 {½-½ (36) Martin Barcelo,C (2198)-Hernandez,C (2374) Barcelona 2021}) 16... dxc4 {[%emt 0:07:24]} 17. Nf5 $1 {[%emt 0:01:55]} Bf6 {[%emt 0:08:17]} 18. Ba3 $1 {[%emt 0:03:37]} cxb3 {[%emt 0:19:47]} ({Black should play} 18... Nc5 $14) 19. cxb3 {[%emt 0:04:46]} (19. Bxf8 $18 Nxf8 20. Rxd8 Bxd8 21. cxb3) 19... Nc5 $14 {[%emt 0:02:19]} 20. a5 $1 {[%emt 0:09:06] Black must now prevent axb6.} Qc6 {[%emt 0:05:39][%csl Gb7][%cal Rc6g2] [#]} 21. Bf1 {[%emt 0:10:24]} Qe6 {[%emt 0:02:20] [#]} 22. Ng3 {[%emt 0:05:22]} (22. axb6 $1 $16 Qxf5 23. Bxc5) 22... Nxb3 $17 {[%emt 0:04:59] Black is more active.} 23. Bxf8 {[%emt 0:09:00]} Nxa1 {[%emt 0:03:48]} ({Resist} 23... Rxf8 24. Rab1 $18) (23... Kxf8 $6 24. Rxd8+ Bxd8 25. Qd3 $14) 24. Rxa1 {[%emt 0:00:04] aiming for Bb4.} e4 {[%emt 0:02:27]} (24... Kxf8 $17 25. axb6 e4) 25. Rb1 {[%emt 0:01:47]} Bd4 $19 {[%emt 0:01:10]} ({Not} 25... Kxf8 26. Rxb6 Qd5 27. Nf5 Qxf5 28. Rxb7 $15) (25... Rxf8 26. Qxb6 Bc6 27. Qxa6 $15) 26. Qg5 {[%emt 0:04:37]} Rxf8 {[%emt 0:00:34]} ({Worse is} 26... Qa2 27. Ne2 Bf6 28. Qc1 $17) 27. axb6 $2 {[%emt 0:00:56]} (27. Rd1 h6 28. Qf5) 27... Qa2 {[%emt 0:00:26]} 28. Ne2 {[%emt 0:00:48][%cal Bg3e2,Be2d4,Bd4f5][%mdl 32]} Qxb1 {[%emt 0:02:16]} 29. Nxd4 {[%emt 0:00:02]} Qxb6 {[%emt 0:01:05]} 30. Nf5 {[%emt 0:00:38][%csl Gf5][%cal Rg5g7]} Qf6 {[%emt 0:09:55]} 31. Ne7+ {[%emt 0:00:11]} Kh8 {[%emt 0:00:00]} 32. Qc5 {[%emt 0:00:01]} Re8 {[%emt 0:00:00]} 33. Nf5 {[%emt 0:00:26]} Qe5 {[%emt 0:00:00]} 34. Qb6 {[%emt 0:01:38]} Qxf5 {[%emt 0:00:00]} 35. Qxb7 {[%emt 0:00:03]} a5 {[%emt 0:00:00]} 36. Bc4 {[%emt 0:00:39]} Qc5 {[%emt 0:00:00]} 37. Qxf7 {[%emt 0:00:18]} Rf8 {[%emt 0:00:00] Weighted Error Value: White=0.63/Black=0.20 (precise)} 0-1

[Event "Dutch Open 2022"]
[Site "Dieren"]
[Date "2022.08.01"]
[Round "6.8"]
[White "Grutter, Tim"]
[Black "Baselmans, Sam"]
[Result "0-1"]
[ECO "C83"]
[WhiteElo "2246"]
[BlackElo "2182"]
[Annotator "TA"]
[PlyCount "112"]
[EventDate "2022.07.14"]
[EventType "swiss"]
[EventCountry "NED"]
[SourceTitle "playchess.com"]
[Source "ChessBase"]
[SourceQuality "1"]
[TimeControl "40/5400+30:1800+30"]

{[%evp 22,112,18,21,37,39,37,16,32,-42,-35,-56,-62,-67,-19,-25,-18,-18,-18,-19,0,-2,0,-39,-8,-37,-26,-115,-40,-45,0,-15,-8,-103,-111,-120,-116,-118,-121,-597,-595,-597,-557,-598,-604,-520,-205,-693,-689,-675,-624,-718,-675,-696,-712,-704,-621,-857,-857,-842,-758,-741,-725,-744,-731,-770,-763,-960,-947,-29968,-1431,-2205,-2415,-2239,-2253,-2287,-2148,-1809,-1414,-5267,-5406,-2710,-2247,-6440,-10408,-29980,-29981,-29977,-29976,-29981,-29982,-29987,-829]} 1. e4 {[%emt 0:00:09]} e5 {[%emt 0:00:11]} 2. Nf3 {[%emt 0:00:07]} Nc6 {[%emt 0:00:05]} 3. Bb5 {[%emt 0:00:04]} a6 {[%emt 0:00:16]} 4. Ba4 {[%emt 0:00:03]} Nf6 {[%emt 0:00:06]} 5. O-O {[%emt 0:00:09]} Nxe4 {[%emt 0:00:09]} 6. d4 {[%emt 0:00:10]} b5 {[%emt 0:00:05]} 7. Bb3 {[%emt 0:00:03]} d5 {[%emt 0:00:04]} 8. dxe5 {[%emt 0:00:03]} Be6 {[%emt 0:00:05]} 9. c3 {[%emt 0:00:04]} Be7 {[%emt 0:00:35]} 10. Be3 {[%emt 0:00:10]} O-O {[%emt 0:00:18]} 11. Nbd2 {[%emt 0:01:32]} Qd7 {[%emt 0:00:16] 11...Qd7 has become a bit dusty these days.} 12. Bc2 {[%emt 0:07:09]} f5 {[%emt 0:07:50] C83: Open Ruy Lopez: 9 c3 Be7.} 13. exf6 {[%emt 0:01:05]} Nxf6 {[%emt 0:00:15]} 14. Qb1 {[%emt 0:05:02]} Kh8 {[%emt 0:07:58] The position is equal.} 15. Ng5 {[%emt 0:19:28]} ({White should try} 15. b4 $14) 15... Ng4 $15 {[%emt 0:06:15]} 16. Nxe6 {[%emt 0:10:14]} Qxe6 {[%emt 0:00:12]} 17. Re1 {[%emt 0:02:02][%cal Bf1e1,Be1e3,Be3h3][%mdl 32] [#]} Qd6 $146 {[%emt 0:05:13]} (17... Nce5 $15 18. Qd1 (18. Bxh7 g6 $17) 18... Bd6) ({Predecessor:} 17... Nce5 18. Bd4 Bd6 19. h3 c5 20. hxg4 cxd4 21. cxd4 Qf6 22. Re2 Nxg4 23. Nf3 Qh6 24. Bf5 Bh2+ 25. Kf1 Bg3 26. Bxg4 Qh1+ 27. Ng1 Bh2 28. Ke1 Qxg2 {0-1 (28) Hubley,R-Pe Ang,R IECG email 1995}) 18. Nf1 $1 $11 {[%emt 0:03:29]} g6 {[%emt 0:05:14]} 19. Qd1 {[%emt 0:05:12]} Nxe3 {[%emt 0:02:44]} 20. Rxe3 {[%emt 0:02:07]} Bf6 {[%emt 0:00:50]} 21. Rh3 {[%emt 0:06:05]} Bg7 {[%emt 0:06:39]} 22. Qd2 {[%emt 0:08:01]} (22. Qg4 $5 {[%cal Rg4g6]}) 22... Rad8 {[%emt 0:02:54]} (22... Ne5 $5 {[%cal Re5g4]}) 23. a4 {[%emt 0:02:07]} b4 {[%emt 0:03:08]} 24. cxb4 {[%emt 0:01:18]} (24. Rd1 $11) 24... Ne5 {[%emt 0:00:42]} ({Black should play} 24... Nxb4 $17 25. Bxg6 Qxg6 26. Qxb4 Rb8) 25. Qg5 {[%emt 0:04:54]} Qe6 {[%emt 0:10:04][%cal Oe6h3][%mdl 1024] Black has compensation.} (25... Qxb4 $2 26. Bxg6 Qf4 27. Qxf4 (27. Rxh7+ Kg8 $16) 27... Rxf4 28. Bxh7 $18 (28. Rxh7+ Kg8 $16)) (25... Rf6 $5 {[%cal Rd8f8]}) 26. Qh4 {[%emt 0:02:16][%csl Gh3][%cal Rh4h7]} h6 {[%emt 0:00:46] Active counter play!} 27. Raa3 {[%emt 0:02:11]} (27. Nd2 $11 {keeps the balance.}) 27... Rd7 $17 {[%emt 0:02:38]} 28. Rhe3 {[%emt 0:02:41] [#]} Rdf7 $1 {[%emt 0:00:45]} 29. f3 {[%emt 0:06:20]} Qb6 {[%emt 0:01:32][%cal Of7f3] aiming for ...Rxf3!} 30. a5 $2 {[%emt 0:00:07][%mdl 8192] [#] This costs White the game.} (30. Qg3 $17 {is a better chance.}) 30... Rxf3 $1 $19 {[%emt 0:04:47][%csl Gf8][%cal Rf3f1][%mdl 576] Pin} 31. Bd3 {[%emt 0:03:05] [#]} Qa7 {[%emt 0:01:27]} 32. Be2 {[%emt 0:01:49]} g5 {[%emt 0:03:55]} 33. Qe1 {[%emt 0:01:17] [#]} R3f4 $40 {[%emt 0:01:33][%mdl 128] Black attacks with force.} (33... Rxf1+ $1 {[%mdl 512]} 34. Bxf1 Ng4) 34. g3 $2 {[%emt 0:02:31]} (34. Ng3) 34... Nf3+ {[%emt 0:00:19]} 35. Bxf3 {[%emt 0:00:05]} Rxf3 {[%emt 0:00:04]} 36. Kg2 {[%emt 0:00:41]} Rxf1 {[%emt 0:00:17]} 37. Qxf1 {[%emt 0:00:04]} Rxf1 {[%emt 0:00:05]} 38. Kxf1 {[%emt 0:00:02]} Qd4 {[%emt 0:00:43]} 39. Rad3 {[%emt 0:00:47]} Qxb2 {[%emt 0:01:11]} 40. Rxd5 {[%emt 0:01:36]} Qc1+ {[%emt 0:02:23]} 41. Ke2 {[%emt 0:32:02]} Qc4+ {[%emt 0:33:11]} 42. Red3 {[%emt 0:02:26]} Qxb4 {[%emt 0:00:16]} 43. Rd7 {[%emt 0:00:00]} Qxa5 {[%emt 0:00:00]} 44. Re7 {[%emt 0:00:00]} Qb5 {[%emt 0:00:00]} 45. Rf7 {[%emt 0:00:00]} a5 {[%emt 0:00:00]} (45... Qe8+ $142 46. Re7 Qxe7+ 47. Kd1 Qe4 48. Kd2 Qg2+ 49. Ke3 Qxh2 50. Rd8+ Kh7 51. Kf3 Be5 52. g4 Qf4+ 53. Ke2 Qxg4+ 54. Ke3 Qf4+ 55. Kd3 g4 56. Ke2 Qf3+ 57. Kd2 g3 58. Rd7+ Kg6 59. Re7 g2 60. Re6+ Kf5 61. Re8 Qc3+ 62. Ke2 Qc2+ 63. Kf3 g1=N+ 64. Ke3 Qe2#) 46. Kd2 {[%emt 0:00:00]} Qb4+ {[%emt 0:00:00]} 47. Ke2 {[%emt 0:00:00]} Qc4 {[%emt 0:00:00]} 48. Rff3 {[%emt 0:00:00]} a4 {[%emt 0:00:00] ...a3 is the strong threat.} 49. Ke1 {[%emt 0:00:00]} Bd4 {[%emt 0:00:00]} 50. Kd2 {[%emt 0:00:00]} Qb4+ {[%emt 0:00:00]} 51. Ke2 {[%emt 0:00:00]} c5 {[%emt 0:00:00] White must now prevent ...Qb2+.} 52. Rf8+ {[%emt 0:00:00]} Kg7 {[%emt 0:00:00]} 53. Rdf3 {[%emt 0:00:00]} Qc4+ {[%emt 0:00:00] Black mates.} 54. Kd2 {[%emt 0:00:00] [#]} Bc3+ $1 {[%emt 0:00:00]} 55. Ke3 {[%emt 0:00:00]} (55. Rxc3 Qd4+) 55... a3 {[%emt 0:00:00]} 56. Ra8 {[%emt 0:00:00]} Qd4+ {[%emt 0:00:00] Weighted Error Value: White=0.99/Black=0.41} 0-1

[Event "Dutch Open 2022"]
[Site "Dieren"]
[Date "2022.08.01"]
[Round "6.9"]
[White "Kumar, Prajit Sai"]
[Black "Labruyere, Roger"]
[Result "1-0"]
[ECO "A48"]
[WhiteElo "2040"]
[BlackElo "2070"]
[Annotator "NA RC"]
[PlyCount "97"]
[EventDate "2022.07.14"]
[EventType "swiss"]
[EventCountry "NED"]
[SourceTitle "playchess.com"]
[Source "ChessBase"]
[SourceQuality "1"]
[TimeControl "40/5400+30:1800+30"]

1. d4 {[%emt 0:00:06]} Nf6 {[%emt 0:07:11]} 2. Nf3 {[%emt 0:00:07]} g6 {[%emt 0:00:05]} 3. Bg5 {[%emt 0:00:06]} Bg7 {[%emt 0:00:04]} 4. Nbd2 {[%emt 0:00:06]} O-O {[%emt 0:00:08]} 5. e3 {[%emt 0:00:05]} d6 {[%emt 0:00:07]} 6. Bc4 {[%emt 0:00:07]} Nbd7 {[%emt 0:00:31]} 7. O-O {[%emt 0:00:09]} c6 {[%emt 0:00:23]} 8. Re1 {[%emt 0:00:07]} e5 {[%emt 0:01:24]} 9. dxe5 {[%emt 0:00:30]} dxe5 {[%emt 0:01:53]} 10. e4 {[%emt 0:00:09]} Qc7 {[%emt 0:01:16]} 11. c3 {[%emt 0:00:32]} b5 {[%emt 0:01:12]} 12. Bf1 {[%emt 0:00:10]} Nc5 {[%emt 0:02:25]} 13. Qc2 {[%emt 0:01:04]} Ne6 {[%emt 0:04:35]} 14. Bh4 {[%emt 0:01:00]} Bb7 {[%emt 0:01:46]} 15. a4 {[%emt 0:02:32]} a6 {[%emt 0:00:13]} 16. c4 {[%emt 0:11:47]} b4 {[%emt 0:02:09]} 17. c5 {[%emt 0:00:13]} Nd7 {[%emt 0:01:04]} 18. Be7 {[%emt 0:02:20]} Rfe8 {[%emt 0:00:22]} 19. Bd6 {[%emt 0:00:23]} Qc8 {[%emt 0:02:18]} 20. a5 {[%emt 0:04:47]} Bf8 {[%emt 0:03:06]} 21. Bxf8 {[%emt 0:01:55]} Rxf8 {[%emt 0:00:12]} 22. Nb3 {[%emt 0:00:30]} Qd8 {[%emt 0:04:07]} 23. Rac1 {[%emt 0:09:19]} Qe7 {[%emt 0:00:38]} 24. Qc4 {[%emt 0:03:37]} Ra7 {[%emt 0:04:09]} 25. Qxb4 {[%emt 0:03:20]} Rb8 {[%emt 0:00:41]} 26. Qc3 {[%emt 0:09:25]} Bc8 {[%emt 0:01:13]} 27. Nfd2 {[%emt 0:08:56]} Rab7 {[%emt 0:01:45]} 28. Re3 {[%emt 0:05:40]} Rb4 {[%emt 0:04:23]} 29. Qc2 {[%emt 0:01:01]} Ndxc5 {[%emt 0:04:11]} 30. Nxc5 {[%emt 0:35:27]} Rxb2 {[%emt 0:51:59]} 31. Qc3 {[%emt 0:00:00]} Nxc5 {[%emt 0:00:00]} 32. Nf3 {[%emt 0:00:00]} Nd7 {[%emt 0:00:00]} 33. Qxc6 {[%emt 0:00:00]} Bb7 {[%emt 0:00:00]} 34. Qc3 {[%emt 0:00:00]} Rb4 {[%emt 0:00:00]} 35. Qa3 {[%emt 0:00:00]} Ba8 {[%emt 0:00:00]} 36. Bxa6 {[%emt 0:00:00]} Nc5 {[%emt 0:00:00]} 37. Bf1 {[%emt 0:00:00]} Qa7 {[%emt 0:00:00]} 38. Nxe5 {[%emt 0:00:00]} Nxe4 {[%emt 0:00:00]} 39. Rd1 {[%emt 0:00:00]} Rb1 {[%emt 0:00:00]} 40. Rxb1 {[%emt 0:00:00]} Rxb1 {[%emt 0:00:03]} 41. Qd3 {[%emt 0:16:36]} Rb2 {[%emt 0:13:08]} 42. Qd8+ {[%emt 0:00:00]} Kg7 {[%emt 0:00:09]} 43. Nd7 {[%emt 0:00:00]} h5 {[%emt 0:05:03]} 44. Qf8+ {[%emt 0:00:00]} Kh7 {[%emt 0:00:07]} 45. Qxf7+ {[%emt 0:00:00]} Kh6 {[%emt 0:00:50]} 46. Qf8+ {[%emt 0:00:00]} Kg5 {[%emt 0:00:22]} 47. h4+ {[%emt 0:00:00]} Kg4 {[%emt 0:01:01]} 48. Qf3+ {[%emt 0:00:00]} Kxh4 {[%emt 0:00:06]} 49. Qf4# {[%emt 0:22:54]} 1-0

[Event "Dutch Open 2022"]
[Site "Dieren"]
[Date "2022.08.01"]
[Round "6.10"]
[White "Manukonda Arun"]
[Black "Pijkeren, Jan"]
[Result "1/2-1/2"]
[ECO "A57"]
[WhiteElo "2021"]
[BlackElo "2196"]
[Annotator "NA RC"]
[PlyCount "63"]
[EventDate "2022.07.14"]
[EventType "swiss"]
[EventCountry "NED"]
[SourceTitle "playchess.com"]
[Source "ChessBase"]
[SourceQuality "1"]
[TimeControl "40/5400+30:1800+30"]

1. d4 {[%emt 0:07:06]} Nf6 {[%emt 0:00:04]} 2. c4 {[%emt 0:00:05]} c5 {[%emt 0:00:04]} 3. d5 {[%emt 0:00:03]} b5 {[%emt 0:00:03]} 4. cxb5 {[%emt 0:00:03]} a6 {[%emt 0:00:03]} 5. e3 {[%emt 0:00:02]} g6 {[%emt 0:00:25]} 6. Nc3 {[%emt 0:00:16]} Bg7 {[%emt 0:00:15]} 7. a4 {[%emt 0:01:10]} O-O {[%emt 0:00:43]} 8. e4 {[%emt 0:00:50]} Bb7 {[%emt 0:04:50]} 9. Nf3 {[%emt 0:05:26]} e6 {[%emt 0:02:42]} 10. bxa6 {[%emt 0:07:41]} Nxa6 {[%emt 0:00:30]} 11. Bc4 {[%emt 0:00:42]} exd5 {[%emt 0:04:58]} 12. exd5 {[%emt 0:00:16]} Re8+ {[%emt 0:01:45]} 13. Be3 {[%emt 0:00:08]} Ng4 {[%emt 0:02:59]} 14. O-O {[%emt 0:00:41]} Rxe3 {[%emt 0:11:54]} 15. fxe3 {[%emt 0:00:27]} Nxe3 {[%emt 0:00:06]} 16. Qb3 {[%emt 0:10:07]} Rb8 {[%emt 0:07:28]} 17. Nb5 {[%emt 0:06:03]} Nxf1 {[%emt 0:00:24]} 18. Rxf1 {[%emt 0:08:04]} d6 {[%emt 0:00:39]} 19. Qe3 {[%emt 0:10:47]} Nc7 {[%emt 0:05:38]} 20. Nxc7 {[%emt 0:03:20]} Qxc7 {[%emt 0:00:08]} 21. b3 {[%emt 0:00:16]} Qd7 {[%emt 0:16:47]} 22. Re1 {[%emt 0:03:05]} Bf6 {[%emt 0:05:23]} 23. Kh1 {[%emt 0:04:09]} Qf5 {[%emt 0:07:04]} 24. Qd2 {[%emt 0:13:38]} Ra8 {[%emt 0:03:16]} 25. h3 {[%emt 0:02:34]} Kg7 {[%emt 0:02:23]} 26. Rf1 {[%emt 0:02:01]} Qe4 {[%emt 0:02:39]} 27. Re1 {[%emt 0:00:28]} Qf5 {[%emt 0:00:16]} 28. Rf1 {[%emt 0:00:08]} Qe4 {[%emt 0:03:03]} 29. Re1 {[%emt 0:00:19]} Qf5 {[%emt 0:00:09]} 30. Rf1 {[%emt 0:04:27]} Qe4 {[%emt 0:18:52]} 31. Nh2 {[%emt 0:11:38]} Qf5 {[%emt 0:00:30]} 32. Nf3 {[%emt 0:00:00]} 1/2-1/2